fUSD/lending_fUSD_20260329
["ID","MTS","AMOUNT","RATE_DAILY","PERIOD"]
[419014509,1774753840021,-1500.0,0.00011968,2]
[419014511,1774753840030,-500.0,0.00011995,2]
[419014513,1774753840040,-300.0,0.00011997,2]
[419014515,1774753840050,-200.0,0.00012024,2]
[419014517,1774753840060,-502.61387031,0.00012068,2]
[419014519,1774753840070,-394.74,0.0001211,2]
[419014521,1774753840079,-169.69,0.00012117,2]
[419014523,1774753840089,-500.0,0.00012269,2]
[419014525,1774753840099,-2000.0,0.00012416,2]
[419014527,1774753840108,-245.04491428,0.00012416,2]
[419014528,1774753840118,-2000.0,0.00012416,2]
[419014529,1774753840212,-150.0,0.00012445,2]
[419014530,1774753840222,-272.177711,0.00012446,2]
[419014531,1774753840232,-26113.9307764,0.00012467,2]
[419014532,1774753840242,-2000.0,0.00012516,2]
[419014533,1774753840251,-1004.98467102,0.00012516,2]
[419014534,1774753840260,-2000.0,0.00012516,2]
[419014535,1774753840270,-1172.12760916,0.00012516,2]
[419014536,1774753840279,-42679.9001324,0.00012523,2]
[419014537,1774753840288,-537.4260351,0.00012523,2]
[419014538,1774753840297,-500.0,0.00012543,2]
[419014539,1774753840306,-200.0,0.00012572,2]
[419014540,1774753840315,-150.4394,0.000127,2]
[419014541,1774753840325,-500.0,0.00012817,2]
[419014542,1774753840335,-927.560578,0.00012824,2]
[419014543,1774753840345,-767.984779,0.00012824,2]
[419014544,1774753840354,-2351.0,0.00012825,2]
[419014545,1774753840363,-2500.0,0.00012964,2]
[419014546,1774753840373,-2500.0,0.00012964,2]
[419014547,1774753840382,-104005.21350705,0.00012999,2]
[419014548,1774753840391,-250.0,0.00013,2]
[419014549,1774753840400,-1523.32620652,0.00013,2]
[419014550,1774753840410,-433.0,0.00013012,2]
[419014551,1774753840419,-26113.9307764,0.00013022,2]
[419014552,1774753840428,-595.96856595,0.00013064,2]
[419014553,1774753840438,-647.88588496,0.00013064,2]
[419014554,1774753840447,-42679.9001324,0.00013086,2]
[419014555,1774753840457,-200.0,0.0001312,2]
[419014556,1774753840466,-175.68789941,0.0001318,2]
[419014557,1774753840476,-220.99311,0.00013306,2]
[419014558,1774753840485,-1200.55551872,0.0001335,2]
[419014559,1774753840494,-537.4260351,0.00013368,2]
[419014560,1774753840503,-250.09143492,0.00013368,2]
[419014561,1774753840512,-7509.7700948,0.00013368,2]
[419014562,1774753840522,-458.600939,0.00013424,2]
[419014563,1774753840531,-165.744832,0.00013424,2]
[419014564,1774753840540,-747.759265,0.00013424,2]
[419014565,1774753840549,-1062.273031,0.00013424,2]
[419014566,1774753840559,-509.48219482,0.00013512,2]
[419014567,1774753840568,-3000.0,0.00013512,2]
[419014568,1774753840578,-301.0,0.00013534,2]
[419014569,1774753840587,-26113.9307764,0.00013578,2]
[419014570,1774753840596,-42679.9001324,0.00013648,2]
[419014571,1774753840605,-200.0,0.00013668,2]
[419014572,1774753840614,-500.0,0.00013698,2]
[419014573,1774753840624,-500.0,0.00013698,2]
[419014574,1774753840633,-500.0,0.00013698,2]
[419014575,1774753840642,-500.0,0.00013698,2]
[419014576,1774753840651,-504.61807419,0.00013698,2]
[419014577,1774753840660,-563.09074423,0.00013698,2]
[419014578,1774753840669,-500.0,0.00013698,2]
[419014579,1774753840678,-500.0,0.00013698,2]
[419014580,1774753840688,-500.0,0.00013698,2]
[419014581,1774753840697,-505.93653105,0.00013698,2]
[419014582,1774753840706,-500.0,0.00013698,2]
[419014583,1774753840715,-500.0,0.00013698,2]
[419014584,1774753840724,-500.0,0.00013698,2]
[419014585,1774753840733,-500.0,0.00013698,2]
[419014586,1774753840743,-500.0,0.00013698,2]
[419014587,1774753840752,-500.0,0.00013698,2]
[419014588,1774753840761,-500.0,0.00013698,2]
[419014589,1774753840771,-500.0,0.00013698,2]
[419014590,1774753840780,-336.64294585,0.00013698,2]
[419014591,1774753840789,-500.0,0.00013698,2]
[419014592,1774753840798,-500.0,0.00013698,2]
[419014593,1774753840808,-500.0,0.00013698,2]
[419014594,1774753840818,-500.0,0.00013698,2]
[419014595,1774753840827,-500.0,0.00013698,2]
[419014596,1774753840837,-500.0,0.00013698,2]
[419014597,1774753840847,-500.0,0.00013698,2]
[419014598,1774753840856,-500.0,0.00013698,2]
[419014599,1774753840866,-500.0,0.00013698,2]
[419014601,1774753840875,-421.06308427,0.00013698,2]
[419014602,1774753840885,-511.61768064,0.00013698,2]
[419014603,1774753840894,-500.0,0.00013698,2]
[419014604,1774753840904,-500.0,0.00013698,2]
[419014605,1774753840913,-500.0,0.00013698,2]
[419014606,1774753840923,-500.0,0.00013698,2]
[419014607,1774753840933,-500.0,0.00013698,2]
[419014608,1774753840943,-500.0,0.00013698,2]
[419014609,1774753840953,-500.0,0.00013698,2]
[419014610,1774753840962,-247.12633402,0.00013698,2]
[419014611,1774753840972,-505.30350392,0.00013698,2]
[419014612,1774753840981,-500.0,0.00013698,2]
[419014613,1774753840991,-500.0,0.00013698,2]
[419014614,1774753841000,-500.0,0.00013698,2]
[419014615,1774753841009,-500.0,0.00013698,2]
[419014616,1774753841018,-500.0,0.00013698,2]
[419014617,1774753841027,-548.79475367,0.00013698,2]
[419014618,1774753841037,-500.0,0.00013698,2]
[419014619,1774753841046,-500.0,0.00013698,2]
[419014620,1774753841056,-500.0,0.00013698,2]
[419014621,1774753841065,-500.0,0.00013698,2]
[419014622,1774753841075,-500.0,0.00013698,2]
[419014623,1774753841085,-500.0,0.00013698,2]
[419014624,1774753841095,-281.51766077,0.00013698,2]
[419014625,1774753841104,-500.0,0.00013698,2]
[419014626,1774753841114,-500.0,0.00013698,2]
[419014627,1774753841124,-500.0,0.00013698,2]
[419014628,1774753841134,-162.75378098,0.00013698,2]
[419014630,1774753841143,-587.57676003,0.00013698,2]
[419014631,1774753841152,-500.0,0.00013698,2]
[419014632,1774753841162,-500.0,0.00013698,2]
[419014633,1774753841171,-500.0,0.00013698,2]
[419014634,1774753841181,-500.0,0.00013698,2]
[419014635,1774753841191,-500.0,0.00013698,2]
[419014636,1774753841200,-629.51176629,0.00013698,2]
[419014637,1774753841210,-500.0,0.00013698,2]
[419014638,1774753841221,-500.0,0.00013698,2]
[419014639,1774753841230,-500.0,0.00013698,2]
[419014640,1774753841239,-500.0,0.00013698,2]
[419014641,1774753841249,-500.0,0.00013698,2]
[419014642,1774753841259,-500.0,0.00013698,2]
[419014643,1774753841268,-500.0,0.00013698,2]
[419014644,1774753841278,-500.0,0.00013698,2]
[419014645,1774753841288,-500.0,0.00013698,2]
[419014646,1774753841298,-500.0,0.00013698,2]
[419014647,1774753841308,-500.0,0.00013698,2]
[419014648,1774753841318,-150.16805847,0.00013698,2]
[419014649,1774753841327,-614.59,0.00013698,2]
[419014650,1774753841337,-614.59,0.00013698,2]
[419014651,1774753841348,-614.59,0.00013698,2]
[419014652,1774753841358,-614.59,0.00013698,2]
[419014653,1774753841367,-614.59,0.00013698,2]
[419014654,1774753841376,-614.59,0.00013698,2]
[419014655,1774753841386,-614.59,0.00013698,2]
[419014656,1774753841395,-614.59,0.00013698,2]
[419014657,1774753841405,-614.59,0.00013698,2]
[419014658,1774753841415,-614.59,0.00013698,2]
[419014659,1774753841424,-614.59,0.00013698,2]
[419014660,1774753841433,-614.59,0.00013698,2]
[419014661,1774753841442,-614.59,0.00013698,2]
[419014662,1774753841452,-614.59,0.00013698,2]
[419014663,1774753841461,-614.59,0.00013698,2]
[419014664,1774753841471,-614.59,0.00013698,2]
[419014665,1774753841480,-614.59,0.00013698,2]
[419014666,1774753841490,-614.59,0.00013698,2]
[419014667,1774753841499,-500.0,0.00013698,2]
[419014668,1774753841508,-500.0,0.00013698,2]
[419014669,1774753841518,-500.0,0.00013698,2]
[419014670,1774753841527,-500.0,0.00013698,2]
[419014671,1774753841536,-376.64854998,0.00013698,2]
[419014672,1774753841545,-500.0,0.00013698,2]
[419014673,1774753841555,-500.0,0.00013698,2]
[419014674,1774753841564,-500.0,0.00013698,2]
[419014675,1774753841574,-500.0,0.00013698,2]
[419014676,1774753841583,-500.0,0.00013698,2]
[419014677,1774753841592,-217.38717604,0.00013698,2]
[419014678,1774753841601,-500.0,0.00013698,2]
[419014679,1774753841611,-500.0,0.00013698,2]
[419014680,1774753841620,-500.0,0.00013698,2]
[419014681,1774753841630,-500.0,0.00013698,2]
[419014682,1774753841640,-289.69293567,0.00013698,2]
[419014683,1774753841650,-500.0,0.00013698,2]
[419014684,1774753841659,-569.13922893,0.00013698,2]
[419014685,1774753841668,-500.0,0.00013698,2]
[419014686,1774753841678,-500.0,0.00013698,2]
[419014687,1774753841688,-500.0,0.00013698,2]
[419014688,1774753841698,-500.0,0.00013698,2]
[419014689,1774753841709,-504.08991767,0.00013698,2]
[419014690,1774753841718,-500.0,0.00013698,2]
[419014691,1774753841728,-500.0,0.00013698,2]
[419014692,1774753841736,-500.0,0.00013698,2]
[419014693,1774753841746,-500.0,0.00013698,2]
[419014694,1774753841755,-500.0,0.00013698,2]
[419014695,1774753841764,-179.21652627,0.00013698,2]
[419014696,1774753841775,-500.0,0.00013698,2]
[419014697,1774753841785,-500.0,0.00013698,2]
[419014698,1774753841794,-500.0,0.00013698,2]
[419014699,1774753841803,-500.0,0.00013698,2]
[419014700,1774753841813,-500.0,0.00013698,2]
[419014701,1774753841823,-500.0,0.00013698,2]
[419014702,1774753841832,-500.0,0.00013698,2]
[419014703,1774753841842,-500.0,0.00013698,2]
[419014704,1774753841852,-500.0,0.00013698,2]
[419014705,1774753841862,-500.0,0.00013698,2]
[419014706,1774753841871,-500.0,0.00013698,2]
[419014707,1774753841881,-500.0,0.00013698,2]
[419014708,1774753841890,-500.0,0.00013698,2]
[419014709,1774753841900,-500.0,0.00013698,2]
[419014710,1774753841910,-500.0,0.00013698,2]
[419014711,1774753841919,-500.0,0.00013698,2]
[419014712,1774753841930,-500.0,0.00013698,2]
[419014713,1774753841940,-500.0,0.00013698,2]
[419014714,1774753841950,-500.0,0.00013698,2]
[419014715,1774753841959,-500.0,0.00013698,2]
[419014716,1774753841968,-500.0,0.00013698,2]
[419014717,1774753841978,-631.42723728,0.00013698,2]
[419014718,1774753841987,-150.0,0.00013699,2]
[419014719,1774753841996,-150.0,0.00013699,2]
[419014720,1774753842006,-150.0,0.00013699,2]
[419014721,1774753842016,-150.0,0.00013699,2]
[419014722,1774753842026,-150.0,0.00013699,2]
[419014723,1774753842035,-371.26,0.00013699,2]
[419014724,1774753842045,-500.0,0.00013699,2]
[419014725,1774753842056,-164.64289673,0.00013699,2]
[419014726,1774753842066,-500.0,0.00013699,2]
[419014727,1774753842075,-500.0,0.00013699,2]
[419014728,1774753842084,-165.20736909,0.00013699,2]
[419014729,1774753842094,-500.0,0.00013699,2]
[419014730,1774753842104,-501.2412305,0.00013699,2]
[419014731,1774753842114,-502.54797101,0.00013699,2]
[419014732,1774753842123,-500.0,0.00013699,2]
[419014733,1774753842132,-500.0,0.00013699,2]
[419014734,1774753842217,-500.0,0.00013699,2]
[419014735,1774753842235,-500.0,0.00013699,2]
[419014736,1774753842245,-500.0,0.00013699,2]
[419014737,1774753842254,-163.45026092,0.00013699,2]
[419014738,1774753842263,-337.48789903,0.00013699,2]
[419014739,1774753842272,-501.46955268,0.00013699,2]
[419014740,1774753842281,-500.0,0.00013699,2]
[419014741,1774753842291,-500.0,0.00013699,2]
[419014742,1774753842300,-500.11753077,0.00013699,2]
[419014743,1774753842309,-500.0,0.00013699,2]
[419014744,1774753842319,-500.0,0.00013699,2]
[419014745,1774753842328,-500.0,0.00013699,2]
[419014746,1774753842337,-161.75757125,0.00013699,2]
[419014747,1774753842346,-303.4827321,0.00013699,2]
[419014748,1774753842355,-160.27279954,0.00013699,2]
[419014749,1774753842364,-518.51040499,0.00013699,2]
[419014750,1774753842374,-500.0,0.00013699,2]
[419014751,1774753842383,-500.61251814,0.00013699,2]
[419014752,1774753842392,-500.0,0.00013699,2]
[419014753,1774753842402,-500.0,0.00013699,2]
[419014754,1774753842411,-500.48512281,0.00013699,2]
[419014755,1774753842429,-500.0,0.00013699,2]
[419014756,1774753842442,-166.38309596,0.00013699,2]
[419014757,1774753842452,-500.0,0.00013699,2]
[419014758,1774753842463,-500.0,0.00013699,2]
[419014759,1774753842475,-500.0,0.00013699,2]
[419014760,1774753842485,-500.0,0.00013699,2]
[419014761,1774753842496,-500.0,0.00013699,2]
[419014762,1774753842507,-500.0,0.00013699,2]
[419014763,1774753842519,-500.0,0.00013699,2]
[419014764,1774753842530,-500.0,0.00013699,2]
[419014765,1774753842541,-500.69436483,0.00013699,2]
[419014766,1774753842551,-500.0,0.00013699,2]
[419014767,1774753842561,-500.79800767,0.00013699,2]
[419014768,1774753842571,-1751.82507383,0.00013699,2]
[419014769,1774753842582,-614.59,0.00013699,2]
[419014770,1774753842593,-254.72596748,0.00013699,2]
[419014771,1774753842603,-648.6,0.000137,2]
[419014772,1774753842612,-7380.22,0.000137,2]
[419014773,1774753842623,-709.29,0.000137,2]
[419014774,1774753842634,-1104.5,0.000137,2]
[419014776,1774753842644,-320.468257,0.00013962,7]
[419014777,1774753842654,-150.0,0.00013973,2]
[419014778,1774753842664,-150.0,0.00013973,2]
[419014779,1774753842674,-150.0,0.00013973,2]
[419014780,1774753842684,-150.0,0.00013973,2]
[419014781,1774753842693,-150.0,0.00013973,2]
[419014782,1774753842703,-514.0,0.00014,2]
[419014783,1774753842712,-7093.2976499,0.00014,7]
[419014784,1774753842722,-250.0,0.00014005,2]
[419014785,1774753842731,-872.0709265,0.00014006,2]
[419014786,1774753842741,-1010.62550353,0.0001406,2]
[419014787,1774753842750,-3281.0,0.00014074,5]
[419014788,1774753842760,-217.8882415,0.00014104,2]
[419014790,1774753842769,-3292.0,0.00014107,2]
[419014791,1774753842779,-26113.9307764,0.00014133,2]
[419014792,1774753842788,-191.34,0.00014198,2]
[419014793,1774753842798,-42679.9001324,0.00014211,2]
[419014794,1774753842807,-537.4260351,0.00014212,2]
[419014796,1774753842817,-282.47233116,0.00014216,2]
[419014797,1774753842827,-150.0,0.00014247,2]
[419014798,1774753842836,-150.0,0.00014247,2]
[419014799,1774753842846,-150.0,0.00014247,2]
[419014800,1774753842857,-374.86231475,0.00014247,2]
[419014801,1774753842867,-1000.0,0.00014247,2]
[419014802,1774753842877,-1000.0,0.00014247,2]
[419014803,1774753842886,-1000.0,0.00014247,2]
[419014804,1774753842896,-1001.92036949,0.00014247,2]
[419014805,1774753842906,-679.35577738,0.00014247,2]
[419014806,1774753842920,-1000.0,0.00014247,2]
[419014807,1774753842930,-1000.0,0.00014247,2]
[419014808,1774753842940,-1000.0,0.00014247,2]
[419014809,1774753842950,-1000.0,0.00014247,2]
[419014810,1774753842960,-1000.0,0.00014247,2]
[419014811,1774753842970,-1000.0,0.00014247,2]
[419014812,1774753842981,-1000.0,0.00014247,2]
[419014813,1774753842991,-1000.0,0.00014247,2]
[419014814,1774753843002,-501.26333658,0.00014247,2]
[419014815,1774753843011,-1003.11755698,0.00014247,2]
[419014816,1774753843021,-1000.0,0.00014247,2]
[419014817,1774753843031,-875.52475925,0.00014247,2]
[419014818,1774753843047,-1000.0,0.00014247,2]
[419014819,1774753843058,-502.07720266,0.00014247,2]
[419014820,1774753843068,-1000.0,0.00014247,2]
[419014821,1774753843079,-1000.0,0.00014247,2]
[419014822,1774753843090,-501.59458687,0.00014247,2]
[419014823,1774753843100,-1000.0,0.00014247,2]
[419014824,1774753843110,-1003.48505181,0.00014247,2]
[419014825,1774753843121,-1000.0,0.00014247,2]
[419014826,1774753843131,-736.0,0.00014268,2]
[419014827,1774753843141,-180.933305,0.00014312,2]
[419014828,1774753843152,-154.53434814,0.00014399,2]
[419014829,1774753843162,-445.31,0.000144,2]
[419014830,1774753843172,-150.8801,0.000144,2]
[419014831,1774753843182,-4731.0,0.00014493,2]
[419014832,1774753843192,-1117.0799,0.00014504,2]
[419014833,1774753843202,-394.74,0.00014628,2]
[419014834,1774753843212,-26113.9307764,0.00014689,2]
[419014835,1774753843223,-436.53,0.00014716,2]
[419014836,1774753843233,-421.91,0.00014716,2]
[419014837,1774753843243,-166.7,0.00014723,2]
[419014838,1774753843252,-42679.9001324,0.00014774,2]
[419014839,1774753843262,-1008.27174746,0.00014795,2]
[419014840,1774753843272,-1500.0,0.00014795,2]
[419014841,1774753843282,-898.88065305,0.00014795,2]
[419014842,1774753843292,-910.63975449,0.00014795,2]
[419014843,1774753843302,-1042.69333386,0.00014795,2]
[419014844,1774753843311,-684.37970889,0.00014795,2]
[419014845,1774753843321,-1500.0,0.00014795,2]
[419014846,1774753843331,-1577.83433324,0.00014795,2]
[419014847,1774753843341,-501.43625985,0.00014795,2]
[419014848,1774753843351,-1500.0,0.00014795,2]
[419014849,1774753843361,-831.30897363,0.00014795,2]
[419014850,1774753843371,-580.42962611,0.00014795,2]
[419014851,1774753843381,-1500.0,0.00014795,2]
[419014852,1774753843391,-1500.0,0.00014795,2]
[419014853,1774753843401,-1500.0,0.00014795,2]
[419014854,1774753843411,-1500.0,0.00014795,2]
[419014855,1774753843422,-502.74977469,0.00014795,2]
[419014856,1774753843432,-160.0,0.00014872,2]
[419014857,1774753843442,-959.8630956,0.00014872,2]
[419014858,1774753843452,-160.0,0.00014872,2]
[419014859,1774753843463,-614.59,0.00014999,2]
[419014860,1774753843473,-614.59,0.00014999,2]
[419014861,1774753843483,-614.59,0.00014999,2]
[419014862,1774753843493,-614.59,0.00014999,2]
[419014863,1774753843503,-614.78062743,0.00014999,2]
[419014864,1774753843512,-500.0,0.00015,2]
[419014865,1774753843522,-500.0,0.00015,2]
[419014866,1774753843532,-500.0,0.00015,2]
[419014867,1774753843542,-500.0,0.00015,2]
[419014868,1774753843552,-500.0,0.00015,2]
[419014869,1774753843562,-500.0,0.00015,2]
[419014870,1774753843573,-500.0,0.00015,2]
[419014871,1774753843583,-500.0,0.00015,2]
[419014872,1774753843593,-500.0,0.00015,2]
[419014873,1774753843602,-500.0,0.00015,2]
[419014875,1774753843612,-500.0,0.00015,2]
[419014877,1774753843622,-500.0,0.00015,2]
[419014879,1774753843632,-500.0,0.00015,2]
[419014881,1774753843642,-500.0,0.00015,2]
[419014883,1774753843651,-500.0,0.00015,2]
[419014885,1774753843660,-500.0,0.00015,2]
[419014887,1774753843670,-500.0,0.00015,2]
[419014889,1774753843681,-500.0,0.00015,2]
[419014891,1774753843691,-500.0,0.00015,2]
[419014893,1774753843701,-500.0,0.00015,2]
[419014894,1774753843710,-500.0,0.00015,2]
[419014895,1774753843719,-513.9,0.00015,2]
[419014896,1774753843729,-500.0,0.00015,2]
[419014897,1774753843739,-500.0,0.00015,2]
[419014898,1774753843748,-500.0,0.00015,2]
[419014899,1774753843759,-500.0,0.00015,2]
[419014900,1774753843769,-530.72,0.00015,2]
[419014901,1774753843779,-300.0,0.00015,2]
[419014902,1774753843789,-500.0,0.00015,2]
[419014903,1774753843799,-500.0,0.00015,2]
[419014904,1774753843809,-150.0,0.00015,2]
[419014905,1774753843819,-537.4260351,0.00015056,2]
[419014906,1774753843829,-685.07,0.00015068,2]
[419014907,1774753843838,-421.92194786,0.00015151,2]
[419014908,1774753843848,-500.0,0.00015199,2]
[419014909,1774753843859,-9552.16786547,0.00015199,2]
[419014910,1774753843869,-151.0,0.00015199,2]
[419014912,1774753843879,-187.28708856,0.00015199,2]
[419014915,1774753843889,-262.90206542,0.00015199,2]
[419014918,1774753843898,-5664.01506335,0.000152,2]
[419014921,1774753843909,-2000.0,0.000152,2]
[419014923,1774753843919,-191.34,0.00015232,2]
[419014925,1774753843929,-26113.9307764,0.00015244,2]
[419014927,1774753843938,-500.0,0.00015254,2]
[419014928,1774753843948,-9905.5980765,0.00015254,2]
[419014929,1774753843957,-151.0,0.00015254,2]
[419014930,1774753843967,-272.62944185,0.00015254,2]
[419014931,1774753843977,-500.0,0.00015309,2]
[419014932,1774753843987,-10272.10520533,0.00015309,2]
[419014933,1774753843997,-151.0,0.00015309,2]
[419014934,1774753844006,-282.71673119,0.00015309,2]
[419014935,1774753844016,-42679.9001324,0.00015336,2]
[419014936,1774753844026,-2000.0,0.00015342,2]
[419014937,1774753844037,-1716.73514063,0.00015342,2]
[419014938,1774753844046,-507.9229115,0.00015342,2]
[419014939,1774753844056,-1500.0,0.00015342,2]
[419014940,1774753844066,-466.69355566,0.00015342,2]
[419014941,1774753844076,-1083.85118063,0.00015342,2]
[419014942,1774753844087,-2000.0,0.00015342,2]
[419014943,1774753844096,-500.0,0.00015364,2]
[419014944,1774753844107,-10652.17309792,0.00015364,2]
[419014945,1774753844219,-151.0,0.00015364,2]
[419014946,1774753844228,-293.17725025,0.00015364,2]
[419014947,1774753844238,-500.0,0.00015419,2]
[419014948,1774753844248,-11046.30350255,0.00015419,2]
[419014949,1774753844257,-151.0,0.00015419,2]
[419014950,1774753844266,-304.02480851,0.00015419,2]
[419014951,1774753844276,-500.0,0.00015474,2]
[419014952,1774753844285,-11455.01673214,0.00015474,2]
[419014953,1774753844294,-151.0,0.00015474,2]
[419014954,1774753844303,-335.87964325,0.00015474,2]
[419014955,1774753844312,-500.0,0.00015479,2]
[419014956,1774753844322,-5888.0,0.00015497,2]
[419014957,1774753844331,-2003.48418562,0.000155,3]
[419014958,1774753844341,-4609.0,0.00015518,2]
[419014959,1774753844351,-500.0,0.00015529,2]
[419014960,1774753844361,-11878.85235123,0.00015529,2]
[419014961,1774753844370,-151.0,0.00015529,2]
[419014962,1774753844383,-394.74,0.00015557,2]
[419014963,1774753844395,-425.0,0.00015583,2]
[419014964,1774753844404,-500.0,0.00015584,2]
[419014965,1774753844415,-2601.6412518,0.00015584,2]
[419014966,1774753844426,-151.0,0.00015584,2]
[419014967,1774753844435,-154.53434814,0.00015598,2]
[419014968,1774753844445,-2000.0,0.000156,2]
[419014969,1774753844455,-4700.0,0.000156,5]
[419014970,1774753844465,-425.0,0.000156,2]
[419014971,1774753844474,-1252.0,0.00015634,2]
[419014972,1774753844485,-732.73812256,0.00015634,2]
[419014973,1774753844495,-500.0,0.00015639,2]
[419014974,1774753844506,-151.0,0.00015639,2]
[419014975,1774753844517,-5888.0,0.00015643,2]
[419014976,1774753844528,-150.0,0.00015645,2]
[419014977,1774753844537,-2587.82372052,0.0001568,2]
[419014978,1774753844548,-425.0,0.00015687,2]
[419014979,1774753844559,-500.0,0.00015694,2]
[419014980,1774753844569,-292.24092278,0.00015694,2]
[419014981,1774753844579,-500.0,0.00015694,2]
[419014982,1774753844588,-4700.0,0.000157,5]
[419014983,1774753844597,-1000.0,0.00015736,2]
[419014984,1774753844607,-1000.0,0.00015741,2]
[419014985,1774753844616,-1000.0,0.00015741,2]
[419014986,1774753844625,-500.0,0.00015749,2]
[419014987,1774753844634,-1000.0,0.00015759,2]
[419014988,1774753844644,-1000.0,0.00015759,2]
[419014989,1774753844653,-1000.0,0.00015759,2]
[419014990,1774753844663,-1000.0,0.00015759,2]
[419014991,1774753844672,-1000.0,0.00015759,2]
[419014992,1774753844682,-1000.0,0.00015759,2]
[419014993,1774753844692,-1000.0,0.00015759,2]
[419014994,1774753844701,-1000.0,0.00015759,2]
[419014995,1774753844710,-1000.0,0.00015759,2]
[419014996,1774753844719,-1000.0,0.00015759,2]
[419014997,1774753844729,-1000.0,0.00015759,2]
[419014998,1774753844738,-1000.0,0.00015759,2]
[419014999,1774753844747,-1000.0,0.00015759,2]
[419015000,1774753844756,-766.149,0.00015759,2]
[419015001,1774753844766,-1000.0,0.00015765,2]
[419015002,1774753844775,-1000.0,0.0001577,2]
[419015003,1774753844785,-1137.0,0.00015781,2]
[419015004,1774753844794,-974.0,0.00015781,2]
[419015005,1774753844803,-1000.0,0.00015796,2]
[419015006,1774753844813,-1000.0,0.00015798,2]
[419015007,1774753844822,-359.61861994,0.00015799,2]
[419015008,1774753844832,-648.6,0.000158,2]
[419015009,1774753844841,-7380.22,0.000158,2]
[419015010,1774753844850,-709.29,0.000158,2]
[419015011,1774753844860,-2025.0,0.000158,2]
[419015012,1774753844870,-4700.0,0.000158,5]
[419015013,1774753844878,-26113.9307764,0.000158,2]
[419015014,1774753844888,-5888.0,0.00015803,2]
[419015015,1774753844897,-1000.0,0.00015805,2]
[419015016,1774753844906,-425.0,0.00015807,2]
[419015017,1774753844915,-425.0,0.00015807,2]
[419015018,1774753844925,-1000.0,0.0001582,2]
[419015019,1774753844934,-1000.0,0.00015838,2]
[419015020,1774753844944,-14831.96573622,0.0001584,2]
[419015021,1774753844953,-1043.26295413,0.0001584,2]
[419015022,1774753844962,-155.85026359,0.0001584,2]
[419015023,1774753844971,-1479.37864,0.0001584,2]
[419015024,1774753844980,-1479.37865,0.0001584,2]
[419015025,1774753844989,-1000.0,0.00015846,2]
[419015026,1774753844999,-1479.37865,0.0001585,2]
[419015027,1774753845008,-1000.0,0.00015852,2]
[419015028,1774753845018,-1000.0,0.00015856,2]
[419015029,1774753845028,-243.59117619,0.00015857,2]
[419015030,1774753845038,-1000.0,0.00015857,2]
[419015031,1774753845047,-1000.0,0.00015858,2]
[419015032,1774753845056,-1000.0,0.00015858,2]
[419015033,1774753845065,-1000.0,0.00015866,2]
[419015034,1774753845075,-1000.0,0.00015873,2]
[419015035,1774753845084,-2000.0,0.0001589,2]
[419015036,1774753845094,-2504.39639872,0.0001589,2]
[419015037,1774753845103,-2005.38041988,0.0001589,2]
[419015038,1774753845113,-42679.9001324,0.00015899,2]
[419015039,1774753845123,-33006.8599,0.000159,2]
[419015040,1774753845132,-1104.5,0.000159,2]
[419015041,1774753845141,-1523.94811729,0.000159,2]
[419015042,1774753845151,-537.4260351,0.000159,2]